fUST/lending_fUST_20250801
["ID","MTS","AMOUNT","RATE_DAILY","PERIOD"]
[376588099,1754044247860,-151.0,0.00027054,7]
[376588100,1754044247869,-151.0,0.00027054,7]
[376588101,1754044247878,-151.0,0.00027054,7]
[376588102,1754044247890,-151.0,0.00027054,7]
[376588103,1754044247899,-151.0,0.00027054,7]
[376588104,1754044247909,-151.0,0.00027054,7]
[376588105,1754044247919,-151.0,0.00027054,7]
[376588106,1754044247928,-151.0,0.00027054,7]
[376588107,1754044247937,-151.0,0.00027054,7]
[376588108,1754044247950,-151.0,0.00027054,7]
[376588109,1754044247959,-151.0,0.00027054,7]
[376588110,1754044247968,-151.0,0.00027054,7]
[376588111,1754044247978,-151.0,0.00027054,7]
[376588112,1754044247988,-151.0,0.00027054,7]
[376588113,1754044247997,-151.0,0.00027054,7]
[376588114,1754044248006,-151.0,0.00027054,7]
[376588115,1754044248015,-151.0,0.00027054,7]
[376588116,1754044248025,-151.0,0.00027054,7]
[376588117,1754044248035,-151.0,0.00027054,7]
[376588118,1754044248044,-151.0,0.00027054,7]
[376588119,1754044248054,-151.0,0.00027054,7]
[376588120,1754044248063,-151.0,0.00027054,7]
[376588121,1754044248073,-151.0,0.00027054,7]
[376588122,1754044248083,-151.0,0.00027054,7]
[376588123,1754044248093,-151.181492,0.00027054,7]
[376588124,1754044248103,-151.0,0.00027054,7]
[376588125,1754044248113,-151.0,0.00027054,7]
[376588126,1754044248122,-151.0,0.00027054,7]
[376588127,1754044248132,-151.0,0.00027054,7]
[376588128,1754044248141,-151.0,0.00027054,7]
[376588129,1754044248150,-151.0,0.00027054,7]
[376588130,1754044248159,-151.0,0.00027054,7]
[376588131,1754044248169,-151.0,0.00027054,7]
[376588132,1754044248179,-151.0,0.00027054,7]
[376588133,1754044248188,-151.0,0.00027054,7]
[376588134,1754044248198,-151.0,0.00027054,7]
[376588135,1754044248207,-151.0,0.00027054,7]
[376588136,1754044248216,-151.0,0.00027054,7]
[376588137,1754044248226,-268.035968,0.00027054,7]
[376588138,1754044248235,-151.0,0.00027054,7]
[376588139,1754044248245,-151.0,0.00027054,7]
[376588140,1754044248254,-151.0,0.00027054,7]
[376588141,1754044248264,-151.0,0.00027054,7]
[376588142,1754044248273,-151.0,0.00027054,7]
[376588143,1754044248283,-151.0,0.00027054,7]
[376588145,1754044248292,-151.0,0.00027054,7]
[376588146,1754044248301,-151.0,0.00027054,7]
[376588147,1754044248311,-151.0,0.00027054,7]
[376588148,1754044248321,-151.0,0.00027054,7]
[376588149,1754044248330,-151.0,0.00027054,7]
[376588150,1754044248339,-151.0,0.00027054,7]
[376588151,1754044248352,-151.0,0.00027054,7]
[376588152,1754044248361,-151.0,0.00027054,7]
[376588153,1754044248371,-252.154598,0.00027054,7]
[376588154,1754044248381,-151.0,0.00027054,7]
[376588155,1754044248391,-151.0,0.00027054,7]
[376588156,1754044248401,-151.0,0.00027054,7]
[376588158,1754044248410,-151.0,0.00027054,7]
[376588159,1754044248420,-151.0,0.00027054,7]
[376588160,1754044248430,-151.0,0.00027054,7]
[376588161,1754044248441,-151.0,0.00027054,7]
[376588162,1754044248450,-151.0,0.00027054,7]
[376588163,1754044248460,-151.0,0.00027054,7]
[376588164,1754044248470,-151.0,0.00027054,7]
[376588165,1754044248480,-232.49438452,0.00027054,2]
[376588166,1754044248489,-151.0,0.00027055,7]
[376588167,1754044248499,-151.0,0.00027055,7]
[376588168,1754044248508,-151.0,0.00027055,7]
[376588169,1754044248517,-151.0,0.00027055,7]
[376588170,1754044248527,-151.0,0.00027055,7]
[376588171,1754044248536,-151.0,0.00027055,7]
[376588172,1754044248546,-297.014433,0.00027055,7]
[376588173,1754044248556,-151.0,0.00027055,7]
[376588174,1754044248565,-151.0,0.00027055,7]
[376588175,1754044248575,-151.0,0.00027055,7]
[376588176,1754044248584,-189.237563,0.00027055,7]
[376588177,1754044248594,-151.0,0.00027055,7]
[376588178,1754044248603,-151.0,0.00027055,7]
[376588179,1754044248612,-151.0,0.00027055,7]
[376588180,1754044248622,-151.0,0.00027055,7]
[376588181,1754044248632,-151.0,0.00027055,7]
[376588182,1754044248641,-151.0,0.00027055,7]
[376588183,1754044248650,-151.0,0.00027055,7]
[376588184,1754044248660,-151.0,0.00027055,7]
[376588185,1754044248670,-162.922384,0.00027055,7]
[376588186,1754044248679,-370.845722,0.00027055,7]
[376588187,1754044248688,-370.845722,0.00027055,7]
[376588188,1754044248697,-370.845722,0.00027055,7]
[376588189,1754044248706,-370.845722,0.00027055,7]
[376588190,1754044248716,-370.845722,0.00027055,7]
[376588191,1754044248726,-370.845722,0.00027055,7]
[376588192,1754044248736,-151.0,0.00027055,7]
[376588193,1754044248745,-370.845722,0.00027055,7]
[376588194,1754044248755,-151.0,0.00027055,7]
[376588195,1754044248764,-370.845722,0.00027055,7]
[376588196,1754044248774,-240.34582,0.00027055,7]
[376588197,1754044248783,-370.845722,0.00027055,7]
[376588198,1754044248793,-370.845722,0.00027055,7]
[376588199,1754044248803,-370.845722,0.00027055,7]
[376588200,1754044248813,-370.845722,0.00027055,7]
[376588201,1754044248822,-370.845722,0.00027055,7]
[376588202,1754044248831,-370.845722,0.00027055,7]
[376588203,1754044248841,-370.845722,0.00027055,7]
[376588204,1754044248928,-370.845722,0.00027055,7]
[376588205,1754044248938,-370.845722,0.00027055,7]
[376588206,1754044248948,-370.845722,0.00027055,7]
[376588207,1754044248958,-370.845722,0.00027055,7]
[376588208,1754044248967,-370.845724,0.00027055,7]
[376588209,1754044248977,-151.0,0.00027055,7]
[376588210,1754044248987,-151.0,0.00027055,7]
[376588211,1754044248996,-151.0,0.00027055,7]
[376588212,1754044249006,-151.0,0.00027055,7]
[376588213,1754044249016,-151.0,0.00027055,7]
[376588214,1754044249025,-151.0,0.00027055,7]
[376588215,1754044249034,-151.0,0.00027055,7]
[376588216,1754044249044,-172.687962,0.00027055,7]
[376588217,1754044249053,-151.0,0.00027055,7]
[376588218,1754044249063,-151.0,0.00027055,7]
[376588219,1754044249072,-151.0,0.00027055,7]
[376588220,1754044249081,-151.0,0.00027055,7]
[376588222,1754044249090,-151.0,0.00027055,7]
[376588223,1754044249099,-151.0,0.00027055,7]
[376588225,1754044249108,-151.0,0.00027055,7]
[376588227,1754044249117,-151.0,0.00027055,7]
[376588229,1754044249127,-151.0,0.00027055,7]
[376588231,1754044249137,-151.0,0.00027055,7]
[376588233,1754044249147,-151.0,0.00027055,7]
[376588235,1754044249156,-151.0,0.00027055,7]
[376588237,1754044249166,-151.0,0.00027055,7]
[376588239,1754044249178,-151.0,0.00027055,7]
[376588241,1754044249187,-244.439461,0.00027055,7]
[376588243,1754044249196,-151.0,0.00027055,7]
[376588245,1754044249206,-151.0,0.00027055,7]
[376588247,1754044249214,-151.0,0.00027055,7]
[376588249,1754044249224,-151.0,0.00027055,7]
[376588251,1754044249233,-151.0,0.00027055,7]
[376588253,1754044249242,-151.0,0.00027055,7]
[376588254,1754044249251,-151.0,0.00027055,7]
[376588256,1754044249261,-151.0,0.00027055,7]
[376588257,1754044249270,-291.3638,0.00027055,7]
[376588258,1754044249280,-151.0,0.00027055,7]
[376588259,1754044249289,-151.0,0.00027055,7]
[376588260,1754044249299,-151.0,0.00027055,7]
[376588261,1754044249309,-151.0,0.00027055,7]
[376588262,1754044249318,-151.0,0.00027055,7]
[376588263,1754044249328,-151.0,0.00027055,7]
[376588264,1754044249337,-151.0,0.00027055,7]
[376588265,1754044249347,-213.869245,0.00027055,10]
[376588266,1754044249359,-151.0,0.00027055,7]
[376588267,1754044249368,-151.0,0.00027055,7]
[376588269,1754044249378,-151.0,0.00027055,7]
[376588270,1754044249387,-151.0,0.00027055,7]
[376588271,1754044249398,-151.0,0.00027055,7]
[376588272,1754044249407,-151.0,0.00027055,7]
[376588273,1754044249417,-151.0,0.00027055,7]
[376588274,1754044249427,-151.0,0.00027055,7]
[376588275,1754044249437,-273.799763,0.00027055,7]
[376588276,1754044249446,-151.0,0.00027055,7]
[376588277,1754044249456,-55173.6840429,0.00027055,20]
[376588351,1754044619742,183.257437,0.00013699,2]
[376588365,1754044642195,220.2314629,0.00013699,2]
[376590238,1754045440658,-576.97071454,0.000189,2]
[376590240,1754045440671,-105.05575312,0.0002,3]
[376590243,1754045440683,-54.94424688,0.0002,3]
[376590244,1754045440692,-183.257437,0.00020187,2]
[376590247,1754045440702,-244.35,0.00022899,2]
[376590249,1754045440714,-18.96934679,0.000239,2]
[376590251,1754045440725,-558.00136775,0.000239,2]
[376590253,1754045440735,-154.91,0.00024315,7]
[376590255,1754045440746,-215.03686253,0.00024355,2]
[376590257,1754045440756,-1000.0,0.00024412,2]
[376590259,1754045440765,-154.91,0.00024415,7]
[376590261,1754045440775,-154.91,0.00024515,7]
[376590263,1754045440783,-154.91,0.00024615,7]
[376590265,1754045440794,-715.67,0.00024647,10]
[376590267,1754045440803,-1117.4,0.00024647,10]
[376590269,1754045440813,-300.0,0.00024656,2]
[376590271,1754045440823,-460.0,0.00024657,4]
[376590273,1754045440832,-463.3445492,0.00024657,4]
[376590275,1754045440842,-460.0,0.00024657,4]
[376590277,1754045440851,-460.0,0.00024657,4]
[376590279,1754045440860,-460.0,0.00024657,4]
[376590281,1754045440870,-460.0,0.00024657,4]
[376590283,1754045440879,-460.40199105,0.00024657,4]
[376590285,1754045440889,-227.44747668,0.00024657,4]
[376590288,1754045440902,-232.55252332,0.00024657,4]
[376590290,1754045440911,-267.70626815,0.00024657,4]
[376590292,1754045440920,-461.5100501,0.00024657,4]
[376590294,1754045440930,-460.0,0.00024657,4]
[376590296,1754045440939,-460.0,0.00024657,10]
[376590298,1754045440948,-460.0,0.00024657,10]
[376590300,1754045440958,-460.0,0.00024657,10]
[376590302,1754045440967,-460.0,0.00024657,10]
[376590304,1754045440977,-460.0,0.00024657,10]
[376590306,1754045440986,-460.0,0.00024657,10]
[376590308,1754045440995,-460.0,0.00024657,10]
[376590310,1754045441004,-460.0,0.00024657,10]
[376590312,1754045441013,-460.0,0.00024657,10]
[376590314,1754045441023,-460.0,0.00024657,10]
[376590316,1754045441032,-460.0,0.00024657,10]
[376590318,1754045441041,-460.0,0.00024657,10]
[376590320,1754045441051,-469.21415259,0.00024657,10]
[376590322,1754045441060,-160.81085803,0.00024657,10]
[376590324,1754045441069,-460.0,0.00024657,10]
[376590326,1754045441078,-461.25670804,0.00024657,10]
[376590328,1754045441089,-500.0,0.00024657,10]
[376590330,1754045441099,-460.0,0.00024657,4]
[376590332,1754045441108,-155.99601206,0.00024657,10]
[376590334,1754045441118,-460.0,0.00024657,10]
[376590336,1754045441127,-460.0,0.00024657,10]
[376590338,1754045441136,-460.0,0.00024657,10]
[376590340,1754045441147,-460.0,0.00024657,10]
[376590342,1754045441156,-460.0,0.00024657,10]
[376590344,1754045441165,-460.83550551,0.00024657,10]
[376590346,1754045441175,-460.0,0.00024657,10]
[376590348,1754045441184,-588.87453763,0.00024657,10]
[376590350,1754045441193,-460.0,0.00024657,10]
[376590352,1754045441202,-460.63620581,0.00024657,10]
[376590354,1754045441213,-460.0,0.00024657,10]
[376590356,1754045441222,-460.0,0.00024657,10]
[376590358,1754045441232,-460.0,0.00024657,10]
[376590360,1754045441243,-460.0,0.00024657,10]
[376590362,1754045441253,-460.0,0.00024657,10]
[376590364,1754045441262,-460.0,0.00024657,10]
[376590366,1754045441271,-460.0,0.00024657,10]
[376590369,1754045441281,-460.0,0.00024657,10]
[376590370,1754045441291,-460.0,0.00024657,10]
[376590373,1754045441302,-460.0,0.00024657,10]
[376590385,1754045441404,-460.0,0.00024657,10]
[376590387,1754045441420,-460.0,0.00024657,10]
[376590389,1754045441429,-460.0,0.00024657,10]
[376590391,1754045441438,-460.0,0.00024657,10]
[376590393,1754045441448,-460.0,0.00024657,10]
[376590395,1754045441458,-460.0,0.00024657,10]
[376590397,1754045441467,-460.0,0.00024657,10]
[376590399,1754045441477,-460.0,0.00024657,10]
[376590401,1754045441486,-460.0,0.00024657,10]
[376590403,1754045441495,-460.0,0.00024657,10]
[376590405,1754045441506,-161.5156693,0.00024657,10]
[376590407,1754045441516,-460.0,0.00024657,10]
[376590409,1754045441526,-460.0,0.00024657,10]
[376590411,1754045441535,-460.0,0.00024657,10]
[376590413,1754045441545,-460.0,0.00024657,10]
[376590415,1754045441555,-460.0,0.00024657,10]
[376590417,1754045441564,-218.80644593,0.00024657,10]
[376590419,1754045441574,-463.71821459,0.00024657,10]
[376590421,1754045441584,-182.69424042,0.00024657,10]
[376590423,1754045441594,-460.0,0.00024657,10]
[376590425,1754045441604,-461.39568545,0.00024657,10]
[376590427,1754045441614,-498.45,0.00024657,10]
[376590429,1754045441623,-460.0,0.00024657,10]
[376590431,1754045441632,-460.0,0.00024657,10]
[376590433,1754045441642,-460.0,0.00024657,10]
[376590435,1754045441651,-460.0,0.00024657,10]
[376590437,1754045441664,-601.07,0.00024657,10]
[376590439,1754045441674,-460.0,0.00024657,10]
[376590441,1754045441684,-460.0,0.00024657,10]
[376590443,1754045441693,-461.17855135,0.00024657,10]
[376590445,1754045441703,-460.0,0.00024657,10]
[376590447,1754045441713,-460.0,0.00024657,10]
[376590449,1754045441722,-460.0,0.00024657,10]
[376590451,1754045441732,-460.0,0.00024657,10]
[376590453,1754045441743,-168.01322038,0.00024657,10]
[376590627,1754045443734,-291.98677962,0.00024657,10]
[376590629,1754045443745,-44.15578324,0.00024657,10]
[376590632,1754045443761,-415.84421676,0.00024657,10]
[376590634,1754045443770,-124.57632795,0.00024657,10]
[376590882,1754045446533,-931.17,0.00024647,10]
[376590884,1754045446542,-335.42367205,0.00024657,10]
[376590886,1754045446552,-460.0,0.00024657,10]
[376590887,1754045446562,-460.0,0.00024657,10]
[376590889,1754045446573,-110.90632795,0.00024657,10]
[376590891,1754045446585,-349.09367205,0.00024657,10]
[376590893,1754045446595,-460.0,0.00024657,10]
[376590895,1754045446605,-460.0,0.00024657,10]
[376590896,1754045446615,-460.0,0.00024657,10]
[376590898,1754045446624,-460.0,0.00024657,10]
[376590900,1754045446633,-528.37176329,0.00024657,10]
[376590901,1754045446642,-460.0,0.00024657,10]
[376590903,1754045446653,-460.0,0.00024657,10]
[376590905,1754045446665,-460.0,0.00024657,10]
[376590907,1754045446679,-586.86,0.00024657,10]
[376590909,1754045446688,-586.86,0.00024657,10]
[376590910,1754045446697,-586.86,0.00024657,10]
[376590912,1754045446708,-586.86,0.00024657,10]
[376590914,1754045446721,-586.86,0.00024657,10]
[376590916,1754045446730,-586.86,0.00024657,10]
[376590917,1754045446740,-586.86,0.00024657,10]
[376590919,1754045446751,-586.86,0.00024657,10]
[376590929,1754045446862,-460.0,0.00024657,10]
[376590931,1754045446872,-586.86,0.00024657,10]
[376590933,1754045446881,-460.0,0.00024657,10]
[376590935,1754045446891,-460.0,0.00024657,10]
[376590936,1754045446900,-460.0,0.00024657,10]
[376590938,1754045446909,-460.0,0.00024657,10]
[376590940,1754045446918,-460.0,0.00024657,10]
[376590942,1754045446927,-94.02574472,0.00024657,10]
[376590944,1754045446947,-367.92385712,0.00024657,10]
[376590946,1754045446956,-461.87236474,0.00024657,10]
[376590948,1754045446967,-491.25430969,0.00024657,10]
[376590950,1754045446976,-328.19706238,0.00024657,10]
[376590951,1754045446985,-460.0,0.00024657,10]
[376590953,1754045446997,-460.0,0.00024657,10]
[376590955,1754045447009,-460.0,0.00024657,10]
[376590957,1754045447019,-460.0,0.00024657,10]
[376590959,1754045447028,-460.0,0.00024657,10]
[376590960,1754045447037,-460.0,0.00024657,10]
[376590962,1754045447046,-460.0,0.00024657,10]
[376590964,1754045447055,-460.0,0.00024657,10]
[376590966,1754045447071,-460.0,0.00024657,10]
[376590967,1754045447080,-460.0,0.00024657,10]
[376590969,1754045447091,-460.0,0.00024657,10]
[376590970,1754045447107,-460.0,0.00024657,10]
[376590972,1754045447116,-460.0,0.00024657,10]
[376590974,1754045447125,-460.0,0.00024657,10]
[376590975,1754045447134,-510.97,0.00024657,10]
[376590977,1754045447145,-460.0,0.00024657,10]
[376590979,1754045447154,-460.0,0.00024657,10]
[376590980,1754045447164,-460.0,0.00024657,10]
[376590982,1754045447173,-460.0,0.00024657,10]
[376590984,1754045447182,-1281.49421613,0.00024657,10]
[376590988,1754045447231,-227.69578387,0.00024657,10]
[376590990,1754045447240,-545.18647771,0.00024657,10]
[376590992,1754045447253,-15.92478005,0.00024657,10]
[376590993,1754045447263,-460.0,0.00024657,10]
[376590995,1754045447272,-460.0,0.00024657,10]
[376590997,1754045447281,-460.0,0.00024657,10]
[376590999,1754045447290,-460.0,0.00024657,10]
[376591000,1754045447300,-460.0,0.00024657,10]
[376591002,1754045447308,-578.65440936,0.00024657,10]
[376591004,1754045447317,-460.52698104,0.00024657,10]
[376591005,1754045447327,-1008.15,0.00024657,10]
[376591007,1754045447336,-460.0,0.00024657,10]
[376591009,1754045447345,-460.0,0.00024657,10]
[376591011,1754045447355,-460.0,0.00024657,10]
[376591012,1754045447364,-460.0,0.00024657,10]
[376591014,1754045447374,-707.34,0.00024657,10]
[376591016,1754045447383,-463.45861112,0.00024657,10]
[376591018,1754045447392,-746.82339259,0.00024657,10]
[376591020,1754045447408,-72.82660741,0.00024657,10]
[376591022,1754045447417,-460.0,0.00024657,10]
[376591023,1754045447426,-443.40678013,0.00024657,10]
[376591025,1754045447438,-364.67321987,0.00024657,10]
[376591027,1754045447446,-173.48724039,0.00024657,10]
[376591590,1754045937306,174.42642,0.00013699,2]
[376591592,1754045991619,2605.0694,0.00027059,30]
[376591593,1754045998406,-160.0,0.0002,3]
[376591594,1754045998428,-37.0,0.0002,3]
[376591596,1754046357741,182.30118805,0.00013699,2]
[376591657,1754046632091,-123.0,0.0002,3]
[376591659,1754046632101,-167.96,0.0002,2]
[376591661,1754046632111,-160.0,0.0002,3]
[376591662,1754046632120,-174.42642,0.00020187,2]
[376591663,1754046632129,-150.0,0.00021,2]
[376591664,1754046632139,-195.48,0.00022808,2]
[376591665,1754046632148,-204.081672,0.00023077,2]
[376591666,1754046632158,-160.0,0.00023672,2]
[376591667,1754046632168,-216.22890603,0.00023672,2]
[376591668,1754046632177,-254.69300197,0.00023723,2]
[376591819,1754046638137,-272.23258103,0.00023723,2]
[376591820,1754046638147,-160.0,0.00023723,2]
[376591821,1754046638156,-460.76838597,0.00023723,2]
[376591822,1754046638166,-231.52694941,0.00023723,2]
[376591823,1754046638175,-841.53699354,0.00023723,2]
[376591824,1754046638184,-160.0,0.00023723,2]
[376591825,1754046638194,-174.3964664,0.00023733,2]
[376591826,1754046638203,-773.90354967,0.00024092,2]
[376591827,1754046638212,-300.0,0.00024202,2]
[376591828,1754046638221,-200.0,0.00024203,15]
[376591829,1754046638231,-200.0,0.00024203,15]
[376591830,1754046638240,-200.0,0.00024203,15]
[376591831,1754046638250,-200.0,0.00024203,15]
[376591832,1754046638259,-200.0,0.00024203,15]
[376591833,1754046638270,-152.99,0.00024318,7]
[376591834,1754046638279,-152.99,0.00024418,7]
[376591835,1754046638289,-152.99,0.00024518,7]
[376591836,1754046638298,-721.18189622,0.00024557,2]
[376591837,1754046638309,-152.99,0.00024618,7]
[376591838,1754046638319,-1273.02,0.00024647,3]
[376591839,1754046638329,-636.51,0.00024647,3]
[376591840,1754046638338,-318.25,0.00024647,3]
[376591841,1754046638347,-159.13,0.00024647,3]
[376591842,1754046638357,-477.39,0.00024647,3]
[376591843,1754046638366,-775.97,0.00024647,10]
[376591844,1754046638375,-646.65,0.00024647,10]
[376591845,1754046638384,-500.0,0.00024656,2]
[376591846,1754046638393,-161.99242317,0.00024656,2]
[376591847,1754046638403,-292.71733101,0.00024656,2]
[376591848,1754046638412,-500.0,0.00024656,2]
[376591849,1754046638422,-1959.47560928,0.00024657,2]
[376591850,1754046638431,-460.0,0.00024657,10]
[376591851,1754046638440,-460.0,0.00024657,10]
[376591852,1754046638450,-460.0,0.00024657,10]
[376591853,1754046638459,-460.0,0.00024657,10]
[376591854,1754046638468,-460.0,0.00024657,10]
[376591855,1754046638478,-472.74049455,0.00024657,10]
[376591856,1754046638489,-348.64065288,0.00024657,10]
[376591857,1754046638499,-460.0,0.00024657,10]
[376591858,1754046638508,-460.0,0.00024657,10]
[376591859,1754046638518,-460.0,0.00024657,10]
[376591860,1754046638527,-460.0,0.00024657,10]
[376591861,1754046638537,-392.26436379,0.00024657,10]
[376591862,1754046638546,-460.0,0.00024657,10]
[376591863,1754046638555,-460.0,0.00024657,10]
[376591864,1754046638564,-460.02790009,0.00024657,10]
[376591865,1754046638574,-460.0,0.00024657,10]
[376591866,1754046638583,-315.74413271,0.00024657,10]
[376591867,1754046638593,-460.0,0.00024657,10]
[376591868,1754046638603,-460.0,0.00024657,10]
[376591869,1754046638612,-460.0,0.00024657,10]
[376591870,1754046638622,-460.0,0.00024657,10]
[376591871,1754046638631,-460.0,0.00024657,10]
[376591872,1754046638640,-172.07988741,0.00024657,10]
[376591873,1754046638650,-460.0,0.00024657,10]
[376591874,1754046638659,-460.0,0.00024657,10]
[376591875,1754046638668,-460.0,0.00024657,10]
[376591876,1754046638677,-247.81394532,0.00024657,10]
[376591877,1754046638687,-460.0,0.00024657,10]
[376591878,1754046638696,-460.0,0.00024657,10]
[376591879,1754046638705,-460.0,0.00024657,10]
[376591880,1754046638715,-460.0,0.00024657,10]
[376591881,1754046638724,-464.85821319,0.00024657,10]
[376591882,1754046638734,-151.0,0.00024657,7]
[376591883,1754046638743,-500.0,0.00024657,2]
[376591884,1754046638753,-500.0,0.00024657,2]
[376591885,1754046638762,-500.0,0.00024657,2]
[376591886,1754046638771,-500.0,0.00024657,2]
[376591887,1754046638780,-628.496858,0.00024657,2]
[376591888,1754046638790,-460.0,0.00024657,10]
[376591889,1754046638798,-460.0,0.00024657,10]
[376591890,1754046638808,-460.0,0.00024657,10]
[376591891,1754046638817,-460.0,0.00024657,10]
[376591892,1754046638826,-7708.27,0.00024657,10]
[376591893,1754046638835,-7708.27,0.00024657,10]
[376591894,1754046638844,-7708.27,0.00024657,10]
[376591895,1754046638854,-7708.27,0.00024657,10]
[376591896,1754046638863,-7521.00026219,0.00024657,10]
[376591898,1754046639927,-537.0600867,0.00024647,10]
[376591899,1754046639982,-1.8099133,0.00024647,10]
[376591900,1754046639993,-187.26973781,0.00024657,10]
[376591901,1754046640003,-7708.27,0.00024657,10]
[376591902,1754046640014,-7708.27,0.00024657,10]
[376591903,1754046640024,-7708.27,0.00024657,10]
[376591904,1754046640033,-7708.27,0.00024657,10]
[376591905,1754046640043,-7708.27,0.00024657,10]
[376591906,1754046640053,-7708.27,0.00024657,10]
[376591907,1754046640062,-7708.27,0.00024657,10]
[376591908,1754046640071,-460.0,0.00024657,10]
[376591909,1754046640081,-460.0,0.00024657,10]
[376591910,1754046640091,-460.0,0.00024657,10]
[376591911,1754046640100,-460.0,0.00024657,10]
[376591912,1754046640109,-443.15987354,0.00024657,10]
[376591913,1754046640118,-460.0,0.00024657,10]
[376591914,1754046640128,-460.0,0.00024657,10]
[376591915,1754046640138,-460.0,0.00024657,10]
[376591916,1754046640147,-346.50092466,0.00024657,10]
[376591917,1754046640156,-460.0,0.00024657,10]
[376591918,1754046640167,-590.46410434,0.00024657,10]
[376591919,1754046640178,-548.50664292,0.00024657,10]
[376591920,1754046640189,-460.0,0.00024657,10]
[376591921,1754046640198,-460.0,0.00024657,10]
[376591922,1754046640207,-460.0,0.00024657,10]
[376591923,1754046640217,-564.59822685,0.00024657,10]
[376591924,1754046640227,-151.0,0.00024657,7]
[376591925,1754046640236,-151.0,0.00024657,7]
[376591926,1754046640245,-151.0,0.00024657,7]
[376591927,1754046640254,-151.0,0.00024657,7]
[376591928,1754046640342,-460.0,0.00024657,10]
[376591929,1754046640352,-460.0,0.00024657,10]
[376591930,1754046640362,-460.0,0.00024657,10]
[376591931,1754046640371,-460.0,0.00024657,10]
[376591932,1754046640380,-239.13403947,0.00024657,10]
[376591933,1754046640390,-465.8770543,0.00024657,10]
[376591934,1754046640399,-460.0,0.00024657,10]
[376591935,1754046640408,-460.0,0.00024657,10]
[376591936,1754046640418,-461.43837568,0.00024657,10]
[376591937,1754046640427,-151.0,0.00024657,7]
[376591938,1754046640437,-151.0,0.00024657,7]
[376591939,1754046640446,-151.0,0.00024657,7]
[376591940,1754046640455,-215.869112,0.00024657,7]
[376591941,1754046640465,-460.0,0.00024657,10]
[376591942,1754046640474,-464.3780288,0.00024657,10]
[376591943,1754046640483,-462.31561383,0.00024657,10]
[376591944,1754046640493,-460.0,0.00024657,10]
[376591945,1754046640503,-460.0,0.00024657,10]
[376591946,1754046640512,-460.0,0.00024657,10]
[376591947,1754046640522,-460.0,0.00024657,10]
[376591948,1754046640531,-460.0,0.00024657,10]
[376591949,1754046640540,-462.06880331,0.00024657,10]
[376591950,1754046640549,-460.0,0.00024657,10]
[376591951,1754046640559,-151.0,0.00024657,7]
[376591952,1754046640568,-461.19285109,0.00024657,10]
[376591953,1754046640577,-199.31203271,0.00024657,7]
[376591954,1754046640586,-460.0,0.00024657,10]
[376591955,1754046640596,-460.0,0.00024657,10]
[376591956,1754046640605,-460.0,0.00024657,10]
[376591957,1754046640615,-460.75423887,0.00024657,10]
[376591958,1754046640624,-460.0,0.00024657,10]
[376591959,1754046640633,-460.0,0.00024657,10]
[376591960,1754046640642,-383.49478012,0.00024657,10]